bitfinex/quotes_BTCUSD_20250118
["timestamp","ask_amount","ask_price","bid_price","bid_amount"]
[1737213606121,0.0968074,104190.0,104170.0,0.85309281]
[1737213606324,0.0827444,104180.0,104170.0,0.66110881]
[1737213606576,0.0827444,104180.0,104170.0,0.22314081]
[1737213606577,0.1787314,104180.0,104170.0,0.22314081]
[1737213606899,0.1787314,104180.0,104170.0,0.31913681]
[1737213607309,0.0827444,104180.0,104170.0,0.51112781]
[1737213608310,0.0008274,104190.0,104180.0,0.095987]
[1737213608511,0.0008274,104190.0,104180.0,0.19522781]
[1737213608912,0.0835718,104190.0,104180.0,0.19522781]
[1737213610295,0.01508704,104190.0,104180.0,0.19522781]
[1737213611451,0.01508704,104190.0,104180.0,0.34618762]
[1737213611660,0.01508704,104190.0,104180.0,0.34522781]
[1737213612484,0.0008274,104190.0,104180.0,0.34522781]
[1737213613636,0.0835718,104190.0,104180.0,0.34522781]
[1737213614079,0.08242497,104190.0,104180.0,0.34522781]
[1737213614287,0.09804246,104200.0,104190.0,0.095978]
[1737213614493,0.09804246,104200.0,104190.0,0.19521881]
[1737213614712,0.01529806,104200.0,104190.0,0.19521881]
[1737213614917,0.01529806,104200.0,104190.0,0.42727848]
[1737213615259,0.01529806,104200.0,104190.0,0.47261881]
[1737213615691,0.0004281,104200.0,104190.0,0.47261881]
[1737213616329,0.0831725,104200.0,104190.0,0.47261881]
[1737213616534,0.0004281,104200.0,104190.0,0.47261881]
[1737213616755,0.0004281,104200.0,104190.0,1.06827793]
[1737213616963,0.1791415,104200.0,104190.0,0.77599993]
[1737213617135,0.1791415,104200.0,104190.0,0.69489993]
[1737213617292,0.1791415,104200.0,104190.0,0.79087793]
[1737213617492,0.1791415,104200.0,104190.0,0.20231852]
[1737213617916,0.0004281,104200.0,104190.0,0.20231852]
[1737213618120,0.0831725,104200.0,104190.0,0.27997818]
[1737213618332,0.0831725,104200.0,104190.0,0.27901852]
[1737213618724,0.0004281,104200.0,104190.0,0.27901852]
[1737213619376,0.0831725,104200.0,104190.0,0.27191881]
[1737213619790,0.0004281,104200.0,104190.0,0.27191881]
[1737213620691,0.0004281,104200.0,104190.0,0.46751881]
[1737213620946,0.0004281,104200.0,104190.0,0.60279285]
[1737213621147,0.0004281,104200.0,104190.0,0.70279285]
[1737213621381,0.0004279,104220.0,104210.0,0.36826]
[1737213621580,0.0005785,104220.0,104210.0,0.57977485]
[1737213621698,0.0005785,104220.0,104210.0,0.49703045]
[1737213622935,0.0005785,104220.0,104210.0,0.46750081]
[1737213623333,0.0005785,104220.0,104210.0,0.47460052]
[1737213623538,0.00049053,104220.0,104210.0,1.10661866]
[1737213624136,0.08323493,104220.0,104210.0,0.95661866]
[1737213624340,0.00049053,104220.0,104210.0,0.95661866]
[1737213624558,0.00049053,104220.0,104210.0,0.70527397]
[1737213624954,0.00049053,104220.0,104210.0,0.68624988]
[1737213625655,0.00049053,104220.0,104210.0,1.06692333]
[1737213625868,0.00049053,104220.0,104210.0,0.94462333]
[1737213626668,0.00049053,104220.0,104210.0,1.02132333]
[1737213626889,0.00049053,104220.0,104210.0,1.06692333]
[1737213627082,0.00049053,104220.0,104210.0,0.85527397]
[1737213627699,0.11651839,104220.0,104210.0,0.73297397]
[1737213627904,0.00049053,104220.0,104210.0,0.73297397]
[1737213628959,0.11651839,104220.0,104210.0,0.79480095]
[1737213629118,0.21246839,104220.0,104210.0,0.59960014]
[1737213629320,0.34246839,104220.0,104210.0,0.59960014]
[1737213629953,0.34246839,104220.0,104210.0,0.00709971]
[1737213631395,0.36183899,104220.0,104210.0,0.00709971]
[1737213631710,0.34246839,104220.0,104210.0,0.00709971]
[1737213631833,0.09596,104210.0,104200.0,0.095968]
[1737213632036,0.21198786,104210.0,104200.0,0.19520881]
[1737213632992,0.11602786,104210.0,104200.0,0.19520881]
[1737213634067,0.14651839,104220.0,104210.0,0.09596]
[1737213634238,0.14651839,104220.0,104210.0,0.19520081]
[1737213634643,0.03049053,104220.0,104210.0,0.19520081]
[1737213634971,0.14641839,104220.0,104210.0,0.19520081]
[1737213635325,0.03039053,104220.0,104210.0,0.19520081]
[1737213635527,0.03039053,104220.0,104210.0,0.34520081]
[1737213635690,0.00039053,104220.0,104210.0,0.42790081]
[1737213635884,0.00039053,104220.0,104210.0,0.45746629]
[1737213636130,0.0159601,104230.0,104220.0,0.14225]
[1737213636357,0.0159601,104230.0,104220.0,0.32419081]
[1737213636557,0.0159601,104230.0,104220.0,0.34719081]
[1737213636756,0.0159601,104230.0,104220.0,0.51721757]
[1737213636955,0.0159601,104230.0,104220.0,0.54677598]
[1737213637368,0.0159601,104230.0,104220.0,0.90742267]
[1737213637680,0.0159601,104230.0,104220.0,0.88442267]
[1737213638298,0.0159601,104230.0,104220.0,1.00212951]
[1737213638510,0.0159601,104230.0,104220.0,0.98210275]
[1737213638718,0.0159601,104230.0,104220.0,1.01048628]
[1737213640852,0.0163876,104230.0,104220.0,1.01048628]
[1737213641685,0.0163876,104230.0,104220.0,1.09539133]
[1737213643009,0.13241546,104230.0,104220.0,0.94539133]
[1737213643236,0.13241546,104230.0,104220.0,0.81639133]
[1737213643436,0.22835646,104230.0,104220.0,0.72044133]
[1737213643677,0.22835646,104230.0,104220.0,0.21252939]
[1737213643909,0.25835646,104230.0,104220.0,0.21252939]
[1737213644118,0.35835646,104230.0,104220.0,0.11328858]
[1737213644490,0.50835646,104230.0,104220.0,0.11328858]
[1737213644750,0.60759727,104230.0,104220.0,0.11328858]
[1737213644962,0.83029727,104230.0,104220.0,0.02838353]
[1737213645234,0.19595,104220.0,104210.0,0.00089775]
[1737213645436,0.40585786,104220.0,104210.0,0.00089775]
[1737213645955,0.69412653,104220.0,104210.0,0.00089775]
[1737213646146,0.47802472,104200.0,104190.0,0.00089796]
[1737213646348,0.57726553,104200.0,104190.0,0.00104856]
[1737213646593,0.68186553,104200.0,104190.0,0.00104856]
[1737213647237,0.69279333,104200.0,104190.0,0.00104856]
[1737213647464,0.79203414,104200.0,104190.0,0.00104856]
[1737213647669,0.46201486,104180.0,104170.0,0.11333891]
[1737213647872,0.46125567,104180.0,104170.0,0.11333891]
[1737213648074,0.46125567,104180.0,104170.0,0.08490505]
[1737213648494,0.096006,104160.0,104150.0,0.08490505]
[1737213648695,0.21203386,104160.0,104150.0,0.08490505]
[1737213648967,0.31203386,104160.0,104150.0,0.08505568]
[1737213649268,0.31203386,104160.0,104150.0,0.00015063]
[1737213650336,0.21203386,104160.0,104150.0,0.00015063]
[1737213651074,0.31203386,104160.0,104150.0,0.00015063]
[1737213651879,0.3312194,104160.0,104150.0,0.00015063]
[1737213652913,0.47536993,104160.0,104150.0,0.00015063]
[1737213653111,0.54648807,104160.0,104150.0,0.00015063]
[1737213653333,0.43046021,104160.0,104150.0,0.00015063]
[1737213653533,0.54648807,104160.0,104150.0,0.00104859]
[1737213654607,0.69648807,104160.0,104150.0,0.00104859]
[1737213656109,0.69648807,104160.0,104150.0,0.12574859]
[1737213656441,0.21200586,104200.0,104170.0,0.095994]
[1737213656582,0.291952,104200.0,104180.0,0.09924081]
[1737213656787,0.095992,104180.0,104160.0,0.096002]
[1737213656990,0.095996,104170.0,104150.0,0.22176259]
[1737213657197,0.583967,104180.0,104150.0,0.6090454]
[1737213657502,0.11602786,104160.0,104150.0,0.5130274]
[1737213658122,0.21203386,104160.0,104150.0,0.00104859]
[1737213658851,0.28463745,104160.0,104150.0,0.00104859]
[1737213659063,0.31203386,104160.0,104150.0,0.00104859]
[1737213660095,0.21203386,104160.0,104150.0,0.00104859]
[1737213660242,0.31203386,104160.0,104150.0,0.00104859]
[1737213660442,0.41203386,104160.0,104150.0,0.00104859]
[1737213660844,0.51127467,104160.0,104150.0,0.00104859]
[1737213661049,0.41203386,104160.0,104150.0,0.00104859]
[1737213661274,0.42806172,104160.0,104150.0,0.00104859]
[1737213661990,0.31203386,104160.0,104150.0,0.00104859]
[1737213662444,0.65890253,104160.0,104150.0,0.00104859]
[1737213662647,0.096015,104150.0,104140.0,0.00089817]
[1737213662851,0.67655234,104150.0,104140.0,0.00089817]
[1737213663056,0.69955234,104150.0,104140.0,0.00089817]
[1737213663469,0.57731153,104150.0,104140.0,0.00089817]
[1737213664126,0.41206086,104130.0,104120.0,0.00089838]
[1737213665533,0.31206086,104130.0,104120.0,0.00089838]
[1737213665738,0.41206086,104130.0,104120.0,0.00089838]
[1737213666364,0.21206086,104130.0,104120.0,0.00089838]
[1737213669279,0.72681786,104140.0,104120.0,0.27498219]
[1737213669491,0.72681786,104140.0,104120.0,0.51296719]
[1737213669728,0.096033,104130.0,104120.0,0.32088219]
[1737213669929,0.706821,104140.0,104120.0,0.32088219]
[1737213669930,0.610789,104140.0,104120.0,0.32088219]
[1737213670081,0.096033,104130.0,104120.0,0.32088219]
[1737213671090,0.91887886,104140.0,104120.0,0.32088219]
[1737213671323,0.3227,104140.0,104130.0,0.19527381]
[1737213671522,0.418724,104140.0,104130.0,0.19527381]
[1737213672462,0.3227,104140.0,104130.0,0.19527381]
[1737213673198,0.418724,104140.0,104130.0,0.19527381]
[1737213673546,0.418724,104140.0,104130.0,0.09924081]
[1737213675395,0.096033,104130.0,104120.0,0.12559838]
[1737213675592,0.21206086,104130.0,104120.0,0.00089838]
[1737213676157,0.096033,104130.0,104120.0,0.00089838]
[1737213676362,0.21206086,104130.0,104120.0,0.00089838]
[1737213677451,0.096033,104130.0,104120.0,0.00089838]
[1737213679372,0.096033,104130.0,104120.0,0.09694138]
[1737213679523,0.3227,104140.0,104120.0,0.10013919]
[1737213679710,0.418726,104140.0,104120.0,0.38824919]
[1737213679912,0.418726,104140.0,104120.0,0.48428419]
[1737213680133,0.096017,104150.0,104140.0,0.096024]
[1737213680339,0.28809813,104150.0,104130.0,0.51973481]
[1737213680563,0.28809813,104150.0,104140.0,0.096024]
[1737213680713,0.09606713,104150.0,104140.0,0.096024]
[1737213681556,0.28809913,104150.0,104130.0,0.71180181]
[1737213681755,0.28809913,104150.0,104130.0,0.51973481]
[1737213682009,0.48013113,104150.0,104130.0,0.51973481]
[1737213682768,0.28809913,104150.0,104130.0,0.71180181]
[1737213683223,5.013e-05,104150.0,104140.0,0.096024]
[1737213683406,5.013e-05,104150.0,104140.0,0.19526481]
[1737213683712,0.21209299,104150.0,104140.0,0.09924081]
[1737213683936,0.50015499,104150.0,104130.0,0.228428]
[1737213684063,0.21205186,104140.0,104130.0,0.083]
[1737213684267,0.59617599,104150.0,104130.0,0.19527381]
[1737213684494,0.28810513,104150.0,104130.0,0.38733981]
[1737213684699,0.48014813,104150.0,104130.0,0.38733981]
[1737213685358,0.096024,104140.0,104130.0,0.38733981]
[1737213685539,0.096024,104140.0,104130.0,0.19527381]
[1737213686462,0.096024,104140.0,104130.0,0.27827381]
[1737213686670,0.096024,104140.0,104130.0,0.18224081]
[1737213686805,0.1556421,104140.0,104130.0,0.27827381]
[1737213687004,0.096024,104140.0,104130.0,0.18224081]
[1737213687635,0.096024,104140.0,104130.0,0.27827381]
[1737213688617,0.096024,104140.0,104130.0,0.18224081]
[1737213688831,0.21205186,104140.0,104130.0,0.18224081]
[1737213689045,0.59616186,104140.0,104120.0,0.50114892]
[1737213689285,0.67498646,104140.0,104120.0,0.60038973]
[1737213689554,0.59616186,104140.0,104120.0,0.60038973]
[1737213689736,0.480134,104140.0,104120.0,0.60038973]
[1737213689861,0.480134,104140.0,104120.0,0.98106318]
[1737213690280,0.50013786,104140.0,104120.0,0.78899318]
[1737213690488,0.21206086,104130.0,104120.0,0.48081264]
[1737213690688,0.29088435,104130.0,104120.0,0.38157183]
[1737213690927,0.21206086,104130.0,104120.0,0.38157183]
[1737213691516,0.21206086,104130.0,104120.0,0.59537269]
[1737213691719,0.31206086,104130.0,104120.0,0.59537269]
[1737213692589,0.31206086,104130.0,104120.0,0.08641872]
[1737213694244,0.096033,104130.0,104120.0,0.08641872]
[1737213694459,0.11531138,104130.0,104120.0,0.08641872]
[1737213694901,0.096033,104130.0,104120.0,0.08641872]
[1737213695562,0.096033,104130.0,104120.0,0.50985235]
[1737213696068,0.6112094,104140.0,104120.0,0.94221816]
[1737213696303,0.6112094,104140.0,104120.0,1.02151816]
[1737213696754,0.2885094,104140.0,104120.0,1.02151816]
[1737213696960,0.2885094,104140.0,104130.0,0.21389704]
[1737213697822,0.2885094,104140.0,104130.0,0.38308524]
[1737213698025,0.0004284,104140.0,104130.0,0.65765905]
[1737213698799,0.0004284,104140.0,104130.0,0.36019033]
[1737213699180,0.0004284,104140.0,104130.0,0.38319033]
[1737213699324,0.0004284,104140.0,104130.0,0.41293629]
[1737213699526,0.0004284,104140.0,104130.0,0.76290185]
[1737213700775,0.0004284,104140.0,104130.0,0.5514166]
[1737213701353,0.0004284,104140.0,104130.0,0.46876137]
[1737213702010,0.0004284,104140.0,104130.0,0.65975029]
[1737213702578,0.0964524,104140.0,104130.0,0.65975029]
[1737213702792,0.0004284,104140.0,104130.0,0.36012083]
[1737213703781,0.0004284,104140.0,104130.0,0.27457381]
[1737213705250,0.0004284,104140.0,104130.0,0.27442181]
[1737213708903,0.0964524,104140.0,104130.0,0.17838881]
[1737213709117,0.0964524,104140.0,104130.0,0.27442181]
[1737213709876,0.0964524,104140.0,104130.0,0.17838881]
[1737213710078,0.0964524,104140.0,104130.0,0.27442181]
[1737213710286,0.0964524,104140.0,104130.0,0.17838881]
[1737213710515,0.0964524,104140.0,104130.0,0.27442181]
[1737213710881,0.0004284,104140.0,104130.0,0.27442181]
[1737213716210,0.0004284,104140.0,104130.0,0.27532145]
[1737213718239,0.0004284,104140.0,104130.0,0.29832145]
[1737213718564,0.0004284,104140.0,104130.0,0.27532145]
[1737213719701,0.0004284,104140.0,104130.0,0.36086847]
[1737213720415,0.0004284,104140.0,104130.0,0.27532145]
[1737213721617,0.0004284,104140.0,104130.0,0.00089964]
[1737213721618,0.17910158,104140.0,104130.0,0.00089964]
[1737213721823,0.25656831,104140.0,104130.0,0.00089964]
[1737213722034,0.17910158,104140.0,104130.0,0.00089964]
[1737213723118,0.52910158,104140.0,104130.0,0.00089964]
[1737213723500,0.17868218,104130.0,104120.0,0.00089838]
[1737213723890,0.21233573,104130.0,104120.0,0.00089838]
[1737213724049,0.31233573,104130.0,104120.0,0.00089838]
[1737213724252,0.096033,104130.0,104120.0,0.00089838]
[1737213724671,0.21233573,104130.0,104120.0,0.00089838]
[1737213725638,0.21233573,104130.0,104120.0,0.19618219]
[1737213726016,0.21233573,104130.0,104120.0,0.10013919]
[1737213728061,0.23117653,104130.0,104120.0,0.10013919]
[1737213728703,0.21233573,104130.0,104120.0,0.10013919]
[1737213728909,0.24233573,104130.0,104120.0,0.10013919]
[1737213731306,0.24233573,104130.0,104120.0,0.00089838]
[1737213732529,0.32133573,104130.0,104120.0,0.00089838]
[1737213733367,0.340628,104130.0,104120.0,0.00089838]
[1737213734380,0.9686804,104140.0,104120.0,0.00089838]
[1737213734559,0.94835182,104230.0,104220.0,21.81861473]
[1737213734765,6.18144445,104230.0,104220.0,18.74492427]
[1737213734958,5.79268747,104230.0,104220.0,17.56276583]
[1737213735165,5.38103747,104230.0,104220.0,16.4495055]
[1737213735330,5.36919747,104230.0,104220.0,14.41637881]
[1737213735536,5.08845179,104230.0,104220.0,12.93244967]
[1737213735778,3.83658702,104230.0,104220.0,11.62860986]
[1737213735976,3.77889702,104230.0,104220.0,11.39296586]
[1737213736336,3.77889702,104230.0,104220.0,10.49709926]
[1737213736535,3.94698172,104230.0,104220.0,9.96567355]
[1737213736739,3.93514172,104230.0,104220.0,9.29766286]
[1737213736968,3.94698172,104230.0,104220.0,8.76828119]
[1737213737141,3.94698172,104230.0,104220.0,8.67233119]
[1737213737318,3.94698172,104230.0,104220.0,8.38411461]
[1737213737520,3.84774091,104230.0,104220.0,7.41926103]
[1737213737726,3.84774091,104230.0,104220.0,6.82872581]
[1737213737926,3.87275635,104230.0,104220.0,6.42630094]
[1737213738119,3.18459635,104230.0,104220.0,6.28172482]
[1737213738319,3.30389922,104230.0,104220.0,6.26248089]
[1737213738510,2.78958722,104230.0,104220.0,5.94283451]
[1737213738711,1.77559599,104230.0,104220.0,5.94283451]
[1737213738930,1.83026345,104230.0,104220.0,5.65461793]
[1737213739179,1.84210345,104230.0,104220.0,5.59381999]
[1737213739316,1.84210345,104230.0,104220.0,5.38426899]
[1737213739716,1.84210345,104230.0,104220.0,5.08705241]
[1737213739918,1.22326145,104230.0,104220.0,4.79883583]
[1737213740120,1.22326145,104230.0,104220.0,4.70288583]
[1737213740351,2.78917199,104230.0,104220.0,4.41466925]
[1737213740520,2.78917199,104230.0,104220.0,4.00688121]
[1737213740521,2.77801199,104230.0,104220.0,4.00688121]
[1737213740726,2.83570199,104230.0,104220.0,3.52787364]
[1737213740927,2.80101199,104230.0,104220.0,3.44462087]
[1737213741125,3.52592949,104230.0,104220.0,2.8839929]
[1737213741625,3.51048599,104230.0,104220.0,2.59667533]
[1737213741827,3.53339205,104230.0,104220.0,2.27622412]
[1737213742046,3.51048599,104230.0,104220.0,2.21865412]
[1737213742365,3.48556849,104230.0,104220.0,1.75990834]
[1737213742581,3.50847455,104230.0,104220.0,1.66251828]
[1737213742935,3.50847455,104230.0,104220.0,1.50697552]
[1737213743134,3.50847455,104230.0,104220.0,1.21461548]
[1737213743347,3.50847455,104230.0,104220.0,1.08695357]
[1737213743482,3.48663041,104230.0,104220.0,0.58848606]
[1737213743683,4.4650751,104230.0,104220.0,0.18665716]
[1737213743909,0.246033,104130.0,104120.0,0.12609838]
[1737213744084,0.257873,104130.0,104120.0,0.14499784]
[1737213745160,0.35711381,104130.0,104120.0,0.14549994]
[1737213745632,0.35711381,104130.0,104120.0,0.09839994]
[1737213746538,0.35711381,104130.0,104120.0,0.02029994]
[1737213747829,0.35711381,104130.0,104120.0,0.21598271]
[1737213749705,0.35711381,104130.0,104120.0,0.2376708]
[1737213749916,0.35711381,104130.0,104120.0,0.21598271]
[1737213750307,0.768241,104140.0,104130.0,0.1252]
[1737213750308,0.418724,104140.0,104130.0,0.1252]
[1737213750550,0.30337,104140.0,104130.0,0.21868277]
[1737213750757,0.096021,104150.0,104130.0,0.14058277]
[1737213750932,0.25949609,104160.0,104150.0,0.1248]
[1737213751132,0.25949609,104160.0,104150.0,0.19528277]
[1737213751335,0.096003,104170.0,104150.0,0.23226663]
[1737213751536,0.43919285,104180.0,104160.0,0.18726663]
[1737213751537,0.48565149,104180.0,104160.0,0.18726663]
[1737213751738,0.48565149,104180.0,104170.0,0.20926663]
[1737213752117,0.48565149,104180.0,104170.0,0.27469784]
[1737213752327,0.49565149,104180.0,104170.0,0.27469784]
[1737213752624,0.48565149,104180.0,104170.0,0.27469784]
[1737213752820,0.40537856,104200.0,104180.0,0.1028]
[1737213752821,0.49003656,104200.0,104180.0,0.1028]
[1737213753041,0.28806665,104200.0,104190.0,0.12667118]
[1737213753256,0.43806665,104200.0,104190.0,0.1946183]
[1737213753680,0.43806665,104200.0,104190.0,0.17167118]
[1737213754305,0.28806665,104200.0,104190.0,0.17167118]
[1737213755301,0.43806665,104200.0,104190.0,0.17167118]
[1737213757650,0.095978,104190.0,104180.0,0.0798]
[1737213758739,0.095978,104190.0,104180.0,0.22947118]
[1737213758982,0.095978,104190.0,104180.0,0.2487572]
[1737213759668,0.095978,104190.0,104180.0,0.12208602]
[1737213759869,0.63328046,104200.0,104190.0,0.023]
[1737213759870,0.44938665,104200.0,104190.0,0.023]
[1737213761920,0.44938665,104200.0,104190.0,0.068]
[1737213764274,0.43806665,104200.0,104190.0,0.068]
[1737213765067,0.43849485,104200.0,104190.0,0.068]
[1737213770299,0.53773566,104200.0,104190.0,0.068]
[1737213770875,0.53773566,104200.0,104190.0,0.06786515]
[1737213771089,0.095978,104190.0,104180.0,0.09908602]
[1737213771237,0.19521881,104190.0,104180.0,0.09908602]
[1737213771437,0.34521881,104190.0,104180.0,0.09908602]
[1737213771661,0.34521881,104190.0,104180.0,0.01928602]
[1737213772148,0.35521881,104190.0,104180.0,0.01928602]
[1737213773253,0.5528903,104190.0,104180.0,0.01928602]
[1737213777086,0.5528903,104190.0,104180.0,0.04228602]
[1737213778441,0.35521881,104190.0,104180.0,0.04228602]
[1737213778799,0.35521881,104190.0,104180.0,0.04318524]
[1737213781767,0.36546543,104190.0,104180.0,0.04318524]
[1737213784095,0.66546543,104190.0,104180.0,0.04318524]
[1737213786690,0.66546543,104190.0,104180.0,0.02389922]
[1737213790305,0.66589363,104190.0,104180.0,0.02389922]
[1737213790910,0.545987,104180.0,104170.0,0.01900693]
[1737213791133,0.64522781,104180.0,104170.0,0.01900693]
[1737213792401,0.34522781,104180.0,104170.0,0.01900693]
[1737213793547,0.35558781,104180.0,104170.0,0.04200693]
[1737213794271,0.34522781,104180.0,104170.0,0.04200693]
[1737213794437,0.35558781,104180.0,104170.0,0.05390762]
[1737213794647,0.35558781,104180.0,104170.0,0.04200693]
[1737213797407,0.35558781,104180.0,104170.0,0.09120693]
[1737213798143,0.34522781,104180.0,104170.0,0.17310693]
[1737213798293,0.35558781,104180.0,104170.0,0.17310693]
[1737213802446,0.35558781,104180.0,104170.0,0.17400615]
[1737213807587,0.35558781,104180.0,104170.0,0.12480615]
[1737213808237,0.35558781,104180.0,104170.0,0.04290615]
[1737213808430,0.65558781,104180.0,104170.0,0.01990615]
[1737213809174,0.65558781,104180.0,104170.0,0.04290615]
[1737213812143,0.65558781,104180.0,104170.0,0.02389922]
[1737213812377,0.44367749,104160.0,104150.0,0.0819]
[1737213812578,0.5429183,104160.0,104150.0,0.0819]
[1737213812777,0.5429183,104160.0,104150.0,0.10143232]
[1737213814686,0.5529183,104160.0,104150.0,0.12443232]
[1737213817542,0.35524681,104160.0,104150.0,0.12443232]
[1737213818732,0.35524681,104160.0,104150.0,0.01953232]
[1737213819223,0.35524681,104160.0,104150.0,0.01833532]
[1737213820588,0.418715,104150.0,104140.0,0.1484]
[1737213820746,0.51795581,104150.0,104140.0,0.1484]
[1737213822383,0.51795581,104150.0,104140.0,0.11844847]
[1737213822980,0.64525581,104150.0,104140.0,0.01924847]
[1737213823151,0.246024,104140.0,104130.0,0.12409901]
[1737213823385,0.35470481,104140.0,104130.0,0.12460111]
[1737213824470,0.35470481,104140.0,104130.0,0.16644025]
[1737213825406,0.35470481,104140.0,104130.0,0.14329225]
[1737213826971,0.35318481,104140.0,104130.0,0.14329225]
[1737213827728,0.36327861,104140.0,104130.0,0.14329225]
[1737213829301,0.66327861,104140.0,104130.0,0.14329225]
[1737213831431,0.66327861,104140.0,104130.0,0.12445311]
[1737213831631,0.66327861,104140.0,104130.0,0.00125311]
[1737213833026,0.20535861,104140.0,104130.0,0.15005311]
[1737213833226,0.21479861,104140.0,104130.0,0.15005311]
[1737213833923,0.35535861,104140.0,104130.0,0.15005311]
[1737213834130,0.36479861,104140.0,104130.0,0.15005311]
[1737213835578,0.36479861,104140.0,104130.0,0.00125311]
[1737213835579,0.66479861,104140.0,104130.0,0.00125311]
[1737213837987,0.66522681,104140.0,104130.0,0.00125311]
[1737213840905,0.36522681,104140.0,104130.0,0.00125311]
[1737213841276,0.36522681,104140.0,104130.0,0.15205311]
[1737213841872,0.21522681,104140.0,104130.0,0.15205311]
[1737213842071,0.36522681,104140.0,104130.0,0.15205311]
[1737213843059,0.35578681,104140.0,104130.0,0.15205311]
[1737213843296,0.36522681,104140.0,104130.0,0.15205311]
[1737213843469,0.36522681,104140.0,104130.0,0.12905311]
[1737213844174,0.36522681,104140.0,104130.0,0.14801544]
[1737213844782,0.36522681,104140.0,104130.0,0.12905311]
[1737213845800,0.66522681,104140.0,104130.0,0.12905311]
[1737213846748,0.36522681,104140.0,104130.0,0.12905311]
[1737213846951,0.66522681,104140.0,104130.0,0.12905311]
[1737213847985,0.36522681,104140.0,104130.0,0.12905311]
[1737213848535,0.36474681,104140.0,104130.0,0.12905311]
[1737213849849,0.35578681,104140.0,104130.0,0.12905311]
[1737213850054,0.36474681,104140.0,104130.0,0.12905311]
[1737213852879,0.40316581,104140.0,104130.0,0.12905311]
[1737213854646,0.160522,104140.0,104130.0,0.15205311]
[1737213854856,0.0004282,104140.0,104130.0,0.30410139]
[1737213855260,0.15896,104150.0,104140.0,0.1508]
[1737213855439,0.130613,104160.0,104150.0,0.1278]
[1737213855685,0.14944655,104160.0,104150.0,0.1278]
[1737213855867,0.11103355,104160.0,104150.0,0.1278]
[1737213856019,0.10116,104160.0,104150.0,0.2008905]
[1737213856657,0.207166,104160.0,104150.0,0.1278]
[1737213857258,0.11116,104160.0,104150.0,0.1278]
[1737213857440,0.207166,104160.0,104150.0,0.1278]
[1737213857639,0.01,104160.0,104150.0,0.246815]
[1737213857897,0.106006,104160.0,104150.0,0.1278]
[1737213858443,0.01,104160.0,104150.0,0.1278]
[1737213858645,0.106006,104160.0,104150.0,0.1278]
[1737213859176,0.01,104160.0,104150.0,0.16933949]
[1737213859430,0.105906,104160.0,104150.0,0.16933949]
[1737213859597,0.20514681,104160.0,104150.0,0.14655949]
[1737213860835,0.35514681,104160.0,104150.0,0.14655949]
[1737213861041,0.36410681,104160.0,104150.0,0.14655949]
[1737213861281,0.35557501,104160.0,104150.0,0.14655949]
[1737213861482,0.36453501,104160.0,104150.0,0.14655949]
[1737213861804,0.35557501,104160.0,104150.0,0.14655949]
[1737213862005,0.36453501,104160.0,104150.0,0.14655949]
[1737213864723,0.1603282,104160.0,104150.0,0.1812769]
[1737213864927,0.0192882,104160.0,104150.0,0.2772919]
[1737213870474,0.0192882,104160.0,104150.0,0.1812769]
[1737213870641,0.0192882,104160.0,104150.0,0.26557449]
[1737213871104,0.0192882,104160.0,104150.0,0.16955949]
[1737213871313,0.1152942,104160.0,104150.0,0.16955949]
[1737213872330,0.21453501,104160.0,104150.0,0.14655949]
[1737213873381,0.36453501,104160.0,104150.0,0.14655949]
[1737213875937,0.36453501,104160.0,104150.0,0.10155949]
[1737213876759,0.246015,104150.0,104140.0,0.12729922]
[1737213876963,0.34525581,104150.0,104140.0,0.01992014]
[1737213877170,0.34525581,104150.0,104140.0,0.00089922]
[1737213880956,0.64525581,104150.0,104140.0,0.00089922]
[1737213883003,0.34525581,104150.0,104140.0,0.07989922]
[1737213884175,1.04080571,104150.0,104140.0,0.07989922]
[1737213885276,0.73228571,104150.0,104140.0,0.09275445]
[1737213885483,0.48627071,104150.0,104140.0,0.14015445]
[1737213885724,0.40028702,104150.0,104140.0,0.2550195]
[1737213885928,0.30104621,104150.0,104140.0,0.2780195]
[1737213886138,0.30104621,104150.0,104140.0,0.3780195]
[1737213886591,0.26301168,104150.0,104140.0,0.3780195]
[1737213886744,0.0188482,104160.0,104150.0,0.241415]
[1737213887090,0.0103282,104160.0,104150.0,0.32952385]
[1737213887671,0.0103282,104160.0,104150.0,0.23350885]
[1737213887873,0.0103282,104160.0,104150.0,0.32952385]
[1737213889107,0.0103282,104160.0,104150.0,0.23350885]
[1737213889320,0.1063342,104160.0,104150.0,0.23350885]
[1737213889462,0.20557501,104160.0,104150.0,0.1224]
[1737213890515,0.10956901,104160.0,104150.0,0.1224]
[1737213890671,0.20557501,104160.0,104150.0,0.1224]
[1737213890871,0.0103282,104160.0,104150.0,0.241415]
[1737213891121,0.0103282,104160.0,104150.0,0.34065581]
[1737213892459,0.0188482,104160.0,104150.0,0.34065581]
[1737213896488,0.0188482,104160.0,104150.0,0.34155482]
[1737213896844,0.0188482,104160.0,104150.0,0.44155482]
[1737213899942,0.0103282,104160.0,104150.0,0.54155482]
[1737213900143,0.0004282,104160.0,104150.0,0.54155482]
[1737213900921,0.0004282,104160.0,104150.0,0.69155482]
[1737213901123,0.0004282,104160.0,104150.0,0.79079563]
[1737213901323,0.000428,104180.0,104160.0,0.3449]
[1737213901530,0.008868,104180.0,104170.0,0.240896]
[1737213901970,0.000428,104180.0,104170.0,0.240896]
[1737213902185,0.008868,104180.0,104170.0,0.240896]
[1737213902606,0.104855,104180.0,104170.0,0.240896]
[1737213903154,0.20409581,104180.0,104170.0,0.1219]
[1737213903594,0.19565581,104180.0,104170.0,0.1219]
[1737213903793,0.20419222,104180.0,104170.0,0.16255286]
[1737213904593,0.20419222,104180.0,104170.0,0.1219]
[1737213905247,0.20419222,104180.0,104170.0,0.240896]
[1737213905248,0.00896441,104180.0,104170.0,0.240896]
[1737213905619,0.00896441,104180.0,104170.0,0.26037191]
[1737213906574,0.10495141,104180.0,104170.0,0.16437591]
[1737213908130,0.10495141,104180.0,104170.0,0.26037191]
[1737213908356,0.10495141,104180.0,104170.0,0.35367216]
[1737213908564,0.00052441,104180.0,104170.0,0.55367216]
[1737213911589,0.00052441,104180.0,104170.0,0.56345542]
[1737213913617,0.00896441,104180.0,104170.0,0.56345542]
[1737213915907,0.00896441,104180.0,104170.0,0.66345542]
[1737213917461,0.00052441,104180.0,104170.0,0.83310907]
[1737213918068,0.00052441,104180.0,104170.0,0.76269623]
[1737213918267,0.00052441,104180.0,104170.0,0.57015517]
[1737213918686,0.00052441,104180.0,104170.0,0.46037191]
[1737213918861,0.00052441,104180.0,104170.0,0.56037191]
[1737213919304,0.00052441,104180.0,104170.0,0.46037191]
[1737213919656,0.00052441,104180.0,104170.0,0.56037191]
[1737213919856,0.00052441,104180.0,104170.0,0.65961272]
[1737213919966,0.00052441,104180.0,104170.0,0.55961272]
[1737213920172,0.00052441,104180.0,104170.0,0.46037191]
[1737213921091,0.09651141,104180.0,104170.0,0.46037191]
[1737213921875,0.00052441,104180.0,104170.0,0.46037191]
[1737213923011,0.09651141,104180.0,104170.0,0.46037191]